bitfinex/quotes_BTCUSD_20251007
["timestamp","ask_amount","ask_price","bid_price","bid_amount"]
[1759861731236,0.08954,120740.0,120730.0,0.1696589]
[1759861731473,0.03533,120740.0,120730.0,0.4128989]
[1759861731713,0.76983586,120740.0,120730.0,0.004]
[1759861731945,0.76983586,120740.0,120730.0,0.2472]
[1759861732171,0.27449518,120740.0,120730.0,0.2472]
[1759861733135,0.27449518,120740.0,120730.0,0.004]
[1759861733284,0.29538518,120740.0,120730.0,0.24724]
[1759861733512,0.20097518,120740.0,120730.0,0.4495289]
[1759861733964,0.20097518,120740.0,120730.0,0.4485289]
[1759861734187,0.22028518,120740.0,120730.0,0.24324]
[1759861734417,0.22428518,120740.0,120730.0,0.24324]
[1759861734660,0.21897518,120740.0,120730.0,0.28087]
[1759861734876,0.27849518,120740.0,120730.0,0.24324]
[1759861735117,0.28649518,120740.0,120730.0,0.001]
[1759861735342,0.16566791,120730.0,120710.0,0.26006728]
[1759861735581,0.23918791,120730.0,120720.0,0.20124]
[1759861735798,0.27451791,120730.0,120720.0,0.20124]
[1759861736025,0.16566791,120730.0,120720.0,0.23787]
[1759861736255,0.20099791,120730.0,120720.0,0.40354263]
[1759861736674,0.21023743,120740.0,120720.0,0.40354263]
[1759861736925,0.20723743,120740.0,120720.0,0.54450962]
[1759861737166,0.1656589,120730.0,120720.0,0.54450962]
[1759861737383,0.1766589,120730.0,120720.0,0.54550962]
[1759861737595,0.1656589,120730.0,120720.0,0.54450962]
[1759861737804,0.2009889,120730.0,120720.0,0.23787]
[1759861738020,0.1656589,120730.0,120720.0,0.23887]
[1759861738290,0.1656589,120730.0,120720.0,0.23787]
[1759861738521,0.1766589,120730.0,120720.0,0.23887]
[1759861739385,0.2119889,120730.0,120720.0,0.03763]
[1759861739599,0.2119889,120730.0,120720.0,0.28039]
[1759861739813,0.2119889,120730.0,120720.0,0.001]
[1759861740035,0.91197164,120730.0,120720.0,0.001]
[1759861740259,1.29764164,120730.0,120720.0,0.001]
[1759861740474,0.16572301,120700.0,120670.0,0.09956]
[1759861740690,0.16572754,120680.0,120670.0,0.16493]
[1759861740903,0.16572754,120680.0,120670.0,0.44439]
[1759861741106,0.16572754,120680.0,120670.0,0.1597761]
[1759861741332,0.20188754,120680.0,120670.0,0.28356167]
[1759861741549,0.16572572,120690.0,120670.0,0.52961489]
[1759861741826,0.16572572,120690.0,120670.0,0.54538322]
[1759861742026,0.16572754,120680.0,120670.0,0.28163322]
[1759861742233,0.17472754,120680.0,120670.0,0.35981195]
[1759861742450,0.17472754,120680.0,120670.0,0.59463987]
[1759861743063,0.009,120680.0,120670.0,0.59463987]
[1759861743287,0.001,120680.0,120670.0,0.59363987]
[1759861743706,0.001,120680.0,120670.0,0.59463987]
[1759861743926,0.16572754,120680.0,120670.0,0.52447322]
[1759861744129,0.16572754,120680.0,120670.0,0.52443322]
[1759861744334,0.20288754,120680.0,120670.0,0.03908195]
[1759861744615,0.22479754,120680.0,120670.0,0.24526195]
[1759861744834,0.22479754,120680.0,120670.0,0.41100322]
[1759861745044,0.20288754,120680.0,120670.0,0.44758322]
[1759861745251,0.20288754,120680.0,120670.0,0.00250195]
[1759861745458,0.22479754,120680.0,120670.0,0.00250195]
[1759861745669,0.22479754,120680.0,120670.0,0.03908195]
[1759861745670,0.20288754,120680.0,120670.0,0.03908195]
[1759861745885,0.81974822,120680.0,120670.0,0.00250195]
[1759861746094,0.90287028,120680.0,120670.0,0.00250195]
[1759861746309,0.3882196,120680.0,120670.0,0.00250195]
[1759861747759,0.28223754,120680.0,120670.0,0.00250195]
[1759861747958,0.28223754,120680.0,120670.0,0.03908195]
[1759861747959,0.46775754,120680.0,120670.0,0.03908195]
[1759861748087,0.46775754,120680.0,120670.0,0.00648362]
[1759861748296,0.52519754,120680.0,120670.0,0.00648362]
[1759861749178,1.04036751,120680.0,120670.0,0.00648362]
[1759861749589,1.16750957,120680.0,120670.0,0.00648362]
[1759861749789,0.90338957,120680.0,120670.0,0.00648362]
[1759861749991,1.14622957,120680.0,120670.0,0.00648362]
[1759861750308,1.37707788,120680.0,120670.0,0.00648362]
[1759861750519,0.52503754,120680.0,120670.0,0.00648362]
[1759861750920,1.39819788,120680.0,120670.0,0.00648362]
[1759861751112,1.15539788,120680.0,120670.0,0.00648362]
[1759861751293,1.35417788,120680.0,120670.0,0.00648362]
[1759861751489,1.37703788,120680.0,120670.0,0.00648362]
[1759861751745,0.6310196,120680.0,120670.0,0.00648362]
[1759861752523,1.11137788,120680.0,120670.0,0.00648362]
[1759861752719,0.22479754,120680.0,120670.0,0.04306362]
[1759861752921,0.52499754,120680.0,120670.0,0.00648362]
[1759861753973,0.02291,120680.0,120670.0,0.04306362]
[1759861754186,0.02191,120740.0,120720.0,0.16566513]
[1759861754389,0.03616,120740.0,120730.0,0.2022389]
[1759861754609,0.03616,120740.0,120730.0,0.20310573]
[1759861755024,0.05807,120740.0,120730.0,0.20310573]
[1759861755234,0.22359019,120750.0,120740.0,0.16564518]
[1759861755440,0.22359019,120750.0,120740.0,0.20222518]
[1759861755441,0.00051873,120750.0,120740.0,0.20222518]
[1759861755651,0.00051873,120750.0,120740.0,0.28103518]
[1759861757174,0.00251873,120750.0,120740.0,0.28203518]
[1759861757665,0.00251873,120750.0,120740.0,0.52671518]
[1759861757881,0.00251873,120750.0,120740.0,0.59816447]
[1759861759418,0.03867873,120750.0,120740.0,0.27467447]
[1759861759630,0.06058873,120750.0,120740.0,0.44786518]
[1759861759857,0.00251873,120750.0,120740.0,0.44786518]
[1759861760063,0.00251873,120750.0,120740.0,0.47007518]
[1759861760283,0.03867873,120750.0,120740.0,0.44786518]
[1759861760431,0.00251873,120750.0,120740.0,0.44786518]
[1759861760651,0.00251873,120750.0,120740.0,0.59604547]
[1759861762095,0.00251873,120750.0,120740.0,0.53944547]
[1759861762295,0.00251873,120750.0,120740.0,0.51723547]
[1759861762915,0.00251873,120750.0,120740.0,0.52667518]
[1759861763319,0.00251873,120750.0,120740.0,0.28203518]
[1759861763538,0.00251873,120750.0,120740.0,0.54686518]
[1759861764232,0.00251873,120750.0,120740.0,1.39691552]
[1759861764455,0.03867873,120750.0,120740.0,0.20322518]
[1759861764875,0.00251873,120750.0,120740.0,0.28203518]
[1759861765530,0.00251873,120750.0,120740.0,0.31557005]
[1759861766456,0.00251873,120750.0,120740.0,0.28203518]
[1759861767864,0.00251873,120750.0,120740.0,0.30278518]
[1759861768065,0.00251873,120750.0,120740.0,0.32369518]
[1759861768494,0.00251873,120750.0,120740.0,0.40681724]
[1759861773604,0.00251873,120750.0,120740.0,0.62914724]
[1759861773814,0.00251873,120750.0,120740.0,0.70914404]
[1759861773934,0.00251873,120750.0,120740.0,0.72969404]
[1759861776353,0.00251873,120750.0,120740.0,0.70914404]
[1759861776561,0.00251873,120750.0,120740.0,1.47571232]
[1759861776996,0.00251873,120750.0,120740.0,1.83774232]
[1759861778019,0.00051873,120750.0,120740.0,1.83674232]
[1759861778277,0.00151873,120750.0,120740.0,1.84374232]
[1759861778519,1e-08,120750.0,120740.0,1.87389422]
[1759861778760,1e-08,120750.0,120740.0,2.01828032]
[1759861778932,1e-08,120750.0,120740.0,2.04328031]
[1759861779718,1e-08,120750.0,120740.0,2.05820067]
[1759861780028,1e-08,120750.0,120740.0,1.99889421]
[1759861780561,1e-08,120750.0,120740.0,2.05620067]
[1759861780994,1e-08,120750.0,120740.0,2.06020067]
[1759861781237,1e-08,120750.0,120740.0,1.81696067]
[1759861781451,1e-08,120750.0,120740.0,2.14196067]
[1759861781632,0.01410607,120770.0,120760.0,0.16561775]
[1759861781851,0.01410607,120770.0,120760.0,1.27064178]
[1759861782075,0.01410607,120770.0,120760.0,1.30608178]
[1759861782266,0.01410607,120770.0,120760.0,1.44495178]
[1759861782479,0.01410607,120770.0,120760.0,1.4893223]
[1759861782917,0.01510607,120770.0,120760.0,1.4943223]
[1759861783288,0.01510607,120770.0,120760.0,1.8644742]
[1759861783705,0.01510607,120770.0,120760.0,1.9513542]
[1759861784325,0.79942913,120820.0,120800.0,0.16556291]
[1759861784479,0.13653291,120820.0,120800.0,0.16556291]
[1759861784851,0.03404,120810.0,120800.0,0.20100291]
[1759861785532,0.03419166,120810.0,120800.0,0.20200291]
[1759861786262,0.03419166,120810.0,120800.0,0.20100291]
[1759861786669,0.04119166,120810.0,120800.0,0.20200291]
[1759861786809,0.00715166,120810.0,120800.0,0.25287291]
[1759861787036,0.04419166,120810.0,120800.0,0.24684238]
[1759861787653,0.01015166,120810.0,120800.0,0.25287291]
[1759861787861,0.00515166,120810.0,120800.0,0.25287291]
[1759861788059,0.00826232,120810.0,120800.0,0.25287291]
[1759861789095,0.00826232,120810.0,120800.0,0.27456291]
[1759861789662,0.00826232,120810.0,120800.0,0.25287291]
[1759861790737,0.00826232,120810.0,120800.0,0.27456291]
[1759861792298,0.00826232,120810.0,120800.0,0.29672291]
[1759861793078,0.00826232,120810.0,120800.0,1.17850515]
[1759861793271,0.00826232,120810.0,120800.0,0.69577418]
[1759861793499,0.00826232,120810.0,120800.0,0.66611497]
[1759861793634,0.00826232,120810.0,120800.0,0.77577098]
[1759861795584,0.43988842,120810.0,120800.0,0.11696921]
[1759861795767,0.69028762,120810.0,120800.0,0.001]
[1759861795941,0.93248762,120810.0,120800.0,0.001]
[1759861796341,0.88167762,120810.0,120800.0,0.001]
[1759861796540,0.88167762,120810.0,120800.0,0.03644]
[1759861797149,0.45005152,120810.0,120800.0,0.03644]
[1759861797352,0.88167762,120810.0,120800.0,0.03644]
[1759861797560,0.84763762,120810.0,120800.0,0.23025738]
[1759861797772,0.84763762,120810.0,120800.0,0.11556447]
[1759861798007,0.84763762,120810.0,120800.0,0.08731]
[1759861798219,0.28975762,120810.0,120800.0,0.08731]
[1759861798440,0.45530682,120810.0,120800.0,0.25287291]
[1759861798872,0.45530682,120810.0,120800.0,0.08731]
[1759861799104,0.45530682,120810.0,120800.0,0.109]
[1759861799321,0.45530682,120810.0,120800.0,0.13867355]
[1759861799594,0.17155261,120820.0,120800.0,0.34634646]
[1759861799835,0.17155261,120820.0,120800.0,0.29547646]
[1759861799836,0.41367261,120820.0,120800.0,0.29547646]
[1759861799981,0.84529871,120820.0,120800.0,0.29547646]
[1759861800186,0.84529871,120820.0,120810.0,0.1655492]
[1759861800401,0.41367261,120820.0,120810.0,0.1999892]
[1759861800610,0.1655492,120810.0,120800.0,0.05405]
[1759861800832,0.1655492,120810.0,120800.0,0.21861291]
[1759861801040,0.1655492,120810.0,120800.0,0.25305291]
[1759861801249,0.1655492,120810.0,120800.0,0.27541291]
[1759861801781,0.4076692,120810.0,120800.0,0.27541291]
[1759861802036,0.4076692,120810.0,120800.0,0.25305291]
[1759861802278,0.16557662,120790.0,120780.0,0.24829953]
[1759861802493,0.16559032,120780.0,120770.0,0.16560404]
[1759861802710,0.63245642,120780.0,120770.0,0.03444]
[1759861802889,0.63245642,120780.0,120770.0,0.20004404]
[1759861803114,0.63245642,120780.0,120770.0,0.03444]
[1759861803321,0.16560404,120770.0,120760.0,0.17389863]
[1759861803533,0.59723014,120770.0,120760.0,0.17389863]
[1759861803739,0.88059236,120770.0,120760.0,0.00050195]
[1759861803959,0.88059236,120770.0,120760.0,0.03494195]
[1759861804175,0.44896626,120770.0,120760.0,0.00050195]
[1759861804601,0.88059236,120770.0,120760.0,0.03694195]
[1759861805233,0.24212,120770.0,120760.0,0.3200797]
[1759861805462,0.40772404,120770.0,120760.0,0.2986697]
[1759861805690,0.40772404,120770.0,120760.0,0.3200797]
[1759861806111,0.16560404,120770.0,120760.0,0.3200797]
[1759861806525,0.16560404,120770.0,120760.0,0.32302028]
[1759861806782,0.40772404,120770.0,120760.0,0.38285015]
[1759861807008,0.16560404,120770.0,120760.0,0.15740253]
[1759861807465,0.40772404,120770.0,120760.0,0.13599253]
[1759861807672,0.40772404,120770.0,120760.0,0.30161028]
[1759861808110,0.16560404,120770.0,120760.0,0.30161028]
[1759861808347,0.40772404,120770.0,120760.0,0.35267949]
[1759861808821,0.40872404,120770.0,120760.0,0.35267949]
[1759861810037,0.001,120770.0,120760.0,0.41694641]
[1759861810242,0.001,120770.0,120760.0,0.77842978]
[1759861810855,0.001,120770.0,120760.0,0.73405926]
[1759861811687,0.001,120770.0,120760.0,1.24812829]
[1759861811892,0.001,120770.0,120760.0,0.76421116]
[1759861812074,0.001,120770.0,120760.0,0.82351762]
[1759861812689,0.001,120770.0,120760.0,1.42366665]
[1759861812906,0.001,120770.0,120760.0,1.78866664]
[1759861813103,0.001,120770.0,120760.0,1.72936018]
[1759861813342,0.001,120770.0,120760.0,1.80295697]
[1759861813537,0.06619503,120800.0,120790.0,0.16557662]
[1759861813738,0.06619503,120800.0,120790.0,0.77162475]
[1759861814363,0.41645268,120820.0,120800.0,0.16555067]
[1759861814570,0.41645268,120820.0,120810.0,0.10985]
[1759861814795,0.17433268,120820.0,120810.0,0.10985]
[1759861814984,0.41645268,120820.0,120810.0,0.10985]
[1759861815206,0.17433268,120820.0,120810.0,0.2960992]
[1759861815440,0.41645268,120820.0,120810.0,0.3175092]
[1759861815674,0.41845268,120820.0,120810.0,0.3175092]
[1759861815922,0.18241001,120820.0,120810.0,0.3047092]
[1759861816133,0.4202511,120820.0,120810.0,0.3047092]
[1759861816341,0.4202511,120820.0,120810.0,0.35470321]
[1759861816548,0.1781311,120820.0,120810.0,0.35470321]
[1759861816754,0.4162111,120820.0,120810.0,0.35470321]
[1759861817016,0.1751311,120820.0,120810.0,0.35470321]
[1759861817236,0.2516756,120820.0,120810.0,0.35470321]
[1759861817451,0.4172111,120820.0,120810.0,0.35470321]
[1759861817807,0.1811311,120820.0,120810.0,0.35470321]
[1759861818015,0.4172111,120820.0,120810.0,0.35470321]
[1759861818211,0.0065956,120820.0,120810.0,1.00310454]
[1759861818459,0.0085956,120820.0,120810.0,1.00310454]
[1759861818673,0.0085956,120820.0,120810.0,0.48903551]
[1759861819085,0.0065956,120820.0,120810.0,0.48903551]
[1759861819224,0.0075956,120820.0,120810.0,0.48903551]
[1759861819435,0.00151827,120820.0,120810.0,0.48903551]
[1759861819647,0.00151827,120820.0,120810.0,0.4390415]
[1759861820995,0.00151827,120820.0,120810.0,0.6811215]
[1759861822831,0.00151827,120820.0,120810.0,1.19519053]
[1759861823468,0.00401827,120820.0,120810.0,1.19519053]
[1759861823680,0.00401827,120820.0,120810.0,1.27518733]
[1759861824152,0.00301827,120820.0,120810.0,1.27518733]
[1759861824392,0.00301827,120820.0,120810.0,1.68985959]
[1759861824848,0.00301827,120820.0,120810.0,1.61865899]
[1759861824854,0.00301827,120820.0,120810.0,1.61565899]
[1759861825076,0.00051827,120820.0,120810.0,1.67751948]
[1759861825294,0.00051827,120820.0,120810.0,1.67851948]
[1759861825528,0.00051827,120820.0,120810.0,1.68459858]
[1759861825756,0.00051827,120820.0,120810.0,1.68359858]
[1759861826218,0.00051827,120820.0,120810.0,1.68659858]
[1759861826432,0.00051827,120820.0,120810.0,1.68159858]
[1759861826860,0.00051827,120820.0,120810.0,1.68559858]
[1759861828195,0.00051827,120820.0,120810.0,1.77159858]
[1759861828408,0.00051827,120820.0,120810.0,1.71223809]
[1759861830160,0.00051827,120820.0,120810.0,1.29076552]
[1759861830362,0.00051827,120820.0,120810.0,0.9824584]
[1759861830965,0.00051827,120820.0,120810.0,0.9754584]
[1759861831227,0.00051827,120820.0,120810.0,0.9961884]
[1759861831436,0.00451827,120820.0,120810.0,0.9961884]
[1759861831645,0.00451827,120820.0,120810.0,1.51025743]
[1759861831848,0.00451827,120820.0,120810.0,1.55595334]
[1759861832508,0.00451827,120820.0,120810.0,1.57796334]
[1759861832740,0.00451827,120820.0,120810.0,1.60811524]
[1759861832950,0.00451827,120820.0,120810.0,1.62290333]
[1759861833659,0.00051827,120820.0,120810.0,1.62290333]
[1759861833998,0.00251827,120820.0,120810.0,1.62390333]
[1759861834217,0.00051827,120820.0,120810.0,1.38194333]
[1759861834506,0.00051827,120820.0,120810.0,1.70994333]
[1759861834915,0.00051827,120820.0,120810.0,1.12202649]
[1759861835122,0.00051827,120820.0,120810.0,1.57959516]
[1759861835565,0.00051827,120820.0,120810.0,1.55001552]
[1759861836186,0.00051827,120820.0,120810.0,1.54701552]
[1759861836598,0.00251827,120820.0,120810.0,1.54801552]
[1759861836814,0.00251827,120820.0,120810.0,1.62801232]
[1759861839245,0.00251827,120820.0,120810.0,1.58364709]
[1759861840326,0.00251827,120820.0,120810.0,0.42428175]
[1759861840446,0.00251827,120820.0,120810.0,0.65128922]
[1759861840855,0.16805377,120820.0,120810.0,0.48574002]
[1759861841090,0.16805377,120820.0,120800.0,0.07501616]
[1759861841091,0.1655492,120810.0,120800.0,0.07501616]
[1759861841291,0.78880823,120810.0,120800.0,0.00086617]
[1759861841758,0.89415029,120810.0,120800.0,0.00086617]
[1759861842587,0.89315029,120810.0,120800.0,0.00086617]
[1759861843004,0.89959357,120810.0,120800.0,0.00086617]
[1759861843212,0.90659357,120810.0,120800.0,0.00086617]
[1759861843580,0.90859357,120810.0,120800.0,0.00086617]
[1759861845113,1.05835151,120810.0,120800.0,0.00086617]
[1759861845344,1.13121151,120810.0,120800.0,0.00086617]
[1759861846415,0.80325151,120810.0,120800.0,0.00086617]
[1759861846631,1.13121151,120810.0,120800.0,0.00086617]
[1759861846842,0.64528054,120810.0,120800.0,0.00086617]
[1759861846982,0.81082974,120810.0,120800.0,0.00086617]
[1759861847196,0.81082974,120810.0,120800.0,0.02201617]
[1759861848979,0.4074292,120810.0,120800.0,0.17847617]
[1759861849203,0.41376891,120810.0,120800.0,0.17847617]
[1759861851009,0.41376891,120810.0,120800.0,0.12479617]
[1759861851435,0.17188891,120810.0,120800.0,0.12479617]
[1759861851643,0.49980891,120810.0,120800.0,0.12479617]
[1759861851843,0.56980891,120810.0,120800.0,0.12479617]
[1759861853440,0.56980891,120810.0,120800.0,0.17847617]
[1759861854514,0.56980891,120810.0,120800.0,0.12479617]
[1759861855117,0.24188891,120810.0,120800.0,0.12479617]
[1759861855371,0.56980891,120810.0,120800.0,0.12479617]
[1759861857617,0.56980891,120810.0,120800.0,0.00086617]
[1759861858256,0.56980891,120810.0,120800.0,0.02201617]
[1759861859653,0.56980891,120810.0,120800.0,0.05851617]
[1759861860024,0.24188891,120810.0,120800.0,0.05851617]
[1759861860469,0.56976891,120810.0,120800.0,0.05851617]
[1759861861691,0.07,120810.0,120800.0,0.07212679]
[1759861861891,0.00051827,120820.0,120810.0,0.1655492]
[1759861862156,0.00051827,120820.0,120810.0,0.39216126]
[1759861862358,0.00051827,120820.0,120810.0,1.30027232]
[1759861862783,0.00051827,120820.0,120810.0,0.78620329]
[1759861862984,0.00051827,120820.0,120810.0,1.38026912]
[1759861863109,0.00051827,120820.0,120810.0,1.37989092]
[1759861863328,0.00051827,120820.0,120810.0,1.05201092]
[1759861863547,0.00051827,120820.0,120810.0,1.37989092]
[1759861864017,0.00051827,120820.0,120810.0,1.37985092]
[1759861864224,0.00051827,120820.0,120810.0,1.76561981]
[1759861864431,0.00051827,120820.0,120810.0,1.76661981]
[1759861864889,0.00151827,120820.0,120810.0,1.76661981]
[1759861865094,0.00151827,120820.0,120810.0,1.43876009]
[1759861865315,0.00151827,120820.0,120810.0,1.76660009]
[1759861866053,0.00151827,120820.0,120810.0,1.43876009]
[1759861866247,0.00151827,120820.0,120810.0,0.98904009]
[1759861866478,0.00151827,120820.0,120810.0,0.45932329]
[1759861866660,0.00151827,120820.0,120810.0,1.06764123]
[1759861867305,0.00151827,120820.0,120810.0,1.13168813]
[1759861867719,0.16705377,120820.0,120810.0,1.13168813]
[1759861867924,0.00151827,120820.0,120810.0,1.13168813]
[1759861868744,0.00151827,120820.0,120810.0,1.21168493]
[1759861868937,0.16705377,120820.0,120810.0,1.21168493]
[1759861869192,0.16705377,120820.0,120810.0,0.61792123]
[1759861869405,0.16705377,120820.0,120810.0,0.11102203]
[1759861869608,0.16705377,120820.0,120810.0,0.27657123]
[1759861869801,0.16705377,120820.0,120810.0,0.86646893]
[1759861869922,0.16705377,120820.0,120810.0,0.001]
[1759861870778,0.16705377,120820.0,120810.0,0.02364]
[1759861870986,0.16705377,120820.0,120810.0,0.001]
[1759861872448,0.16705377,120820.0,120810.0,0.13773]
[1759861872652,0.16705377,120820.0,120810.0,0.18099]
[1759861873290,0.16705377,120820.0,120810.0,1.09070562]
[1759861873502,0.00151827,120820.0,120810.0,1.17070242]
[1759861873951,0.00151827,120820.0,120810.0,1.12036765]
[1759861874375,0.00151827,120820.0,120810.0,1.36200765]
[1759861875087,0.00151827,120820.0,120810.0,1.12036765]
[1759861875316,0.00151827,120820.0,120810.0,1.48961767]
[1759861875534,0.16705377,120820.0,120810.0,1.48961767]
[1759861875759,0.00151827,120820.0,120810.0,1.44512971]
[1759861875985,0.16705377,120820.0,120810.0,0.21065203]
[1759861876204,0.16705377,120820.0,120810.0,0.30178]
[1759861876807,0.16705377,120820.0,120810.0,0.34707]
[1759861877085,0.16705377,120820.0,120810.0,0.42263]
[1759861877299,0.16705377,120820.0,120810.0,0.42259]
[1759861878724,0.16705377,120820.0,120810.0,0.12665]
[1759861878925,0.16705377,120820.0,120810.0,0.26524]
[1759861879364,0.16705377,120820.0,120810.0,0.30174]
[1759861880543,0.16705377,120820.0,120810.0,0.06014]
[1759861880751,0.16705377,120820.0,120810.0,0.30174]
[1759861880956,0.16705377,120820.0,120810.0,0.32499]
[1759861881192,0.16705377,120820.0,120810.0,0.34703]
[1759861882574,0.16705377,120820.0,120810.0,0.42259]
[1759861884655,0.16705377,120820.0,120810.0,0.08136]
[1759861884861,4.05253531,120860.0,120850.0,2.75953933]
[1759861885076,5.13670468,120860.0,120850.0,2.75953933]
[1759861885371,5.14102475,120860.0,120850.0,2.75953933]
[1759861885514,5.14738145,120860.0,120850.0,2.75953933]
[1759861885748,5.08118642,120860.0,120850.0,2.75953933]
[1759861885942,5.08918642,120860.0,120850.0,2.75953933]
[1759861886308,4.7817059,120860.0,120850.0,2.75953933]
[1759861886667,4.78170858,120860.0,120850.0,2.75953933]
[1759861887394,4.74573758,120860.0,120850.0,2.75953933]
[1759861887596,4.17819158,120860.0,120850.0,2.75953933]
[1759861889762,0.71199454,120860.0,120850.0,2.75953933]
[1759861889964,0.93818487,120860.0,120850.0,2.75953933]
[1759861890317,0.5938648,120860.0,120850.0,2.75953933]
[1759861890542,0.3473848,120860.0,120850.0,2.86315613]
[1759861890742,0.50781508,120860.0,120850.0,2.82149933]
[1759861890960,0.51081508,120860.0,120850.0,2.82149933]
[1759861891315,0.85081508,120860.0,120850.0,2.82149933]
[1759861891451,0.84781508,120860.0,120850.0,2.82149933]
[1759861891663,0.60633508,120860.0,120850.0,3.27693747]
[1759861891890,0.53891998,120860.0,120850.0,3.66078427]
[1759861892106,0.54091998,120860.0,120850.0,3.66078427]
[1759861892530,0.54091998,120860.0,120850.0,3.51837747]
[1759861892742,0.54091998,120860.0,120850.0,3.08676933]
[1759861893149,0.54091998,120860.0,120850.0,3.62788185]
[1759861893365,0.36908101,120860.0,120850.0,3.62788185]
[1759861893580,0.02908101,120860.0,120850.0,3.79337626]
[1759861893779,0.02908101,120860.0,120850.0,3.87337306]
[1759861893986,0.02908101,120860.0,120850.0,4.04257512]
[1759861894204,0.007224,120860.0,120850.0,4.35449726]
[1759861894423,0.004224,120860.0,120850.0,4.35449726]
[1759861894632,0.17070472,120860.0,120850.0,3.05817374]
[1759861894838,0.002334,120860.0,120850.0,3.39164577]
[1759861895042,0.001334,120860.0,120850.0,3.39164577]
[1759861895253,0.16681472,120860.0,120850.0,2.76453933]
[1759861895464,0.16681472,120860.0,120850.0,2.76653933]
[1759861895465,0.50681472,120860.0,120850.0,2.76653933]
[1759861895873,0.58993678,120860.0,120850.0,2.76653933]
[1759861896501,0.58993678,120860.0,120850.0,2.75953933]
[1759861896709,0.58993678,120860.0,120850.0,2.76253933]
[1759861896924,0.91737678,120860.0,120850.0,2.76253933]
[1759861897123,0.91937678,120860.0,120850.0,2.76253933]
[1759861897334,0.83329678,120860.0,120850.0,2.76253933]
[1759861897539,0.91737678,120860.0,120850.0,2.76253933]
[1759861897743,0.58993678,120860.0,120850.0,2.76253933]
[1759861897951,0.92237678,120860.0,120850.0,2.84053613]
[1759861898153,0.92537678,120860.0,120850.0,2.76053933]
[1759861898356,0.59793678,120860.0,120850.0,2.79887933]
[1759861898597,0.349334,120860.0,120850.0,3.69936399]
[1759861898853,0.250694,120860.0,120850.0,3.8648584]
[1759861899102,0.250694,120860.0,120850.0,3.9448552]
[1759861899375,0.41617472,120860.0,120850.0,3.9448552]
[1759861899632,0.17481472,120860.0,120850.0,3.8648584]
[1759861899849,0.17481472,120860.0,120850.0,4.1062184]
[1759861900088,0.009334,120860.0,120850.0,4.1062184]
[1759861900327,0.26026867,120880.0,120870.0,4.58347889]
[1759861900328,0.51418867,120880.0,120870.0,4.58347889]
[1759861900622,0.51418867,120880.0,120870.0,4.60760889]
[1759861900766,0.51522449,120880.0,120870.0,5.46924035]
[1759861901017,0.51522449,120880.0,120870.0,5.59904035]
[1759861901539,0.52322449,120880.0,120870.0,5.60004035]
[1759861901758,0.53122449,120880.0,120870.0,5.60004035]
[1759861902012,0.52322449,120880.0,120870.0,5.60004035]
[1759861902313,0.00943582,120880.0,120870.0,6.00682738]
[1759861902729,0.00943582,120880.0,120870.0,6.00782738]
[1759861902939,0.00948632,120880.0,120870.0,6.00682738]
[1759861903169,0.16693966,120880.0,120870.0,5.92583058]
[1759861903403,0.16893966,120880.0,120870.0,5.92583058]
[1759861903884,0.16693966,120880.0,120870.0,5.68451058]
[1759861904084,0.16693966,120880.0,120870.0,5.92579058]
[1759861904306,0.00148632,120880.0,120870.0,5.93279058]
[1759861904507,0.00148632,120880.0,120870.0,6.00678738]
[1759861904879,0.00148632,120880.0,120870.0,6.01478738]
[1759861905102,0.00148632,120880.0,120870.0,6.09790944]
[1759861907582,0.00148632,120880.0,120870.0,5.85662944]
[1759861907798,0.00148632,120880.0,120870.0,6.09782944]
[1759861908201,0.00148632,120880.0,120870.0,6.01783264]
[1759861910976,0.00148632,120880.0,120870.0,1.43435375]
[1759861911194,0.00148632,120880.0,120870.0,0.69107909]
[1759861911410,0.00148632,120880.0,120870.0,1.43431375]
[1759861912675,0.00148632,120880.0,120870.0,1.19315375]
[1759861912898,0.00148632,120880.0,120870.0,1.60031055]
[1759861914162,0.00148632,120880.0,120870.0,1.97046245]
[1759861914391,0.00148632,120880.0,120870.0,1.71745244]
[1759861914627,0.00148632,120880.0,120870.0,1.88393258]
[1759861914809,0.00148632,120880.0,120870.0,1.96997258]
[1759861915264,0.00148632,120880.0,120870.0,1.96197258]
[1759861915477,0.00148632,120880.0,120870.0,1.96097258]
[1759861915686,0.00148632,120880.0,120870.0,1.97297258]
[1759861915918,0.00148632,120880.0,120870.0,1.97697258]
[1759861916364,0.00148632,120880.0,120870.0,1.97297258]
[1759861916576,0.00148632,120880.0,120870.0,1.97497258]
[1759861916758,0.00148632,120880.0,120870.0,1.69230054]
[1759861916968,0.00148632,120880.0,120870.0,1.97493258]
[1759861917180,0.00148632,120880.0,120870.0,1.64781258]
[1759861917393,0.00148632,120880.0,120870.0,0.69591909]
[1759861917635,0.00148632,120880.0,120870.0,1.43919375]
[1759861918147,0.00148632,120880.0,120870.0,1.43719375]
[1759861918381,0.00148632,120880.0,120870.0,1.18415375]
[1759861918615,0.00148632,120880.0,120870.0,0.59979703]
[1759861919449,0.16693966,120880.0,120870.0,0.22895703]
[1759861919657,0.16693966,120880.0,120870.0,0.30453]
[1759861919882,0.16693966,120880.0,120870.0,0.46999703]
[1759861920337,0.00148632,120880.0,120870.0,0.49523703]
[1759861920565,0.00148632,120880.0,120870.0,1.46312174]
[1759861921040,0.00148632,120880.0,120870.0,1.46212174]
[1759861921256,0.00148632,120880.0,120870.0,1.49178377]
[1759861921501,0.00348632,120880.0,120870.0,1.49178377]
[1759861921712,0.00248632,120880.0,120870.0,1.49178377]
[1759861921941,0.00148632,120880.0,120870.0,1.49178377]
[1759861922161,0.00148632,120880.0,120870.0,1.21844578]
[1759861922409,0.00148632,120880.0,120870.0,1.54448578]
[1759861923453,0.00148632,120880.0,120870.0,1.45840578]
[1759861923655,0.00148632,120880.0,120870.0,1.57859768]
[1759861923865,0.00148632,120880.0,120870.0,1.59342361]
[1759861924072,0.00148632,120880.0,120870.0,1.67042041]
[1759861924313,0.00148632,120880.0,120870.0,1.67642041]
[1759861924554,0.00148632,120880.0,120870.0,2.05934739]
[1759861924773,0.00148632,120880.0,120870.0,2.06134739]
[1759861925865,0.00148632,120880.0,120870.0,1.99793244]
[1759861926304,0.00148632,120880.0,120870.0,2.05729293]
[1759861927093,0.00148632,120880.0,120870.0,1.99793244]
[1759861927293,0.00148632,120880.0,120870.0,2.34205244]
[1759861927569,0.00148632,120880.0,120870.0,2.03214562]
[1759861927807,0.0004,120900.0,120890.0,0.90871431]
[1759861928001,0.0004505,120900.0,120890.0,1.27719826]
[1759861928213,0.0004505,120900.0,120890.0,1.47350826]
[1759861928434,0.16691203,120900.0,120890.0,0.32387395]
[1759861928682,0.19295937,120910.0,120890.0,0.54417965]
[1759861928879,0.16542597,120900.0,120890.0,0.52046965]
[1759861929095,0.16542597,120900.0,120890.0,0.60266965]
[1759861929736,0.16540175,120920.0,120900.0,0.16542597]
[1759861929935,0.16545225,120920.0,120910.0,0.08812]
[1759861930137,0.16541229,120910.0,120900.0,0.29058]
[1759861930347,0.16541229,120910.0,120900.0,0.30376]